bitfinex-derivatives/quotes_ETHF0:USTF0_20240831
["timestamp","ask_amount","ask_price","bid_price","bid_amount"]
[1725102952051,0.3544,2526.4,2526.3,0.23748]
[1725102960464,0.3544,2526.4,2526.2,3.44529]
[1725102960862,0.3544,2526.4,2526.2,0.23749]
[1725102961057,0.3544,2526.4,2526.2,3.44529]
[1725102961670,0.3544,2526.4,2526.2,3.2078]
[1725102961874,0.3544,2526.4,2526.2,3.44529]
[1725102962651,6.78954244,2526.3,2526.1,0.00593249]
[1725102962856,2.59366244,2526.2,2526.1,0.00593249]
[1725102963060,5.57509,2526.2,2526.1,0.00593249]
[1725102963262,15.72873624,2526.2,2526.1,0.00593249]
[1725102963568,0.23753,2525.8,2525.5,25.1218]
[1725102963766,3.35764923,2525.7,2525.5,3.2078]
[1725102963961,7.51129547,2525.7,2525.5,3.2078]
[1725102966672,0.3749,2525.6,2525.5,3.2078]
[1725102968177,0.3749,2525.6,2525.3,1.24351249]
[1725102968178,12.5024649,2525.6,2525.3,0.00593249]
[1725102968361,2.59184923,2525.5,2525.3,0.00593249]
[1725102968766,2.96674923,2525.6,2525.5,0.23756]
[1725102969182,11.18756747,2525.6,2525.5,0.23756]
[1725102969367,8.59571824,2525.6,2525.5,0.23756]
[1725102969770,4.63651824,2525.6,2525.4,0.58887]
[1725102970065,0.3749,2525.6,2525.5,0.23756]
[1725102970473,0.3749,2525.6,2525.4,0.58886]
[1725102975772,0.3749,2525.6,2525.3,4.45130249]
[1725102976371,0.3749,2525.6,2525.4,0.23757]
[1725102977076,0.3749,2525.6,2525.3,3.21373249]
[1725102979675,0.3749,2525.6,2525.3,3.45131249]
[1725102981871,0.3749,2525.6,2525.3,0.24351249]
[1725102984083,0.3749,2525.6,2525.4,0.23757]
[1725102995780,0.3749,2525.6,2525.5,0.23756]
[1725103004901,0.3749,2525.6,2525.5,3.44536]
[1725103006201,0.3749,2525.6,2525.5,0.23756]
[1725103007099,0.3749,2525.6,2525.5,0.62699014]
[1725103008304,0.3749,2525.6,2525.5,0.23756]
[1725103008494,0.3749,2525.6,2525.5,0.62699742]
[1725103013597,0.3749,2525.6,2525.5,0.38943742]
[1725103013797,0.3749,2525.6,2525.5,0.62699742]
[1725103018405,0.3749,2525.6,2525.5,0.23756]
[1725103018612,0.3749,2525.6,2525.5,0.62701537]
[1725103024007,0.3749,2525.6,2525.5,0.23756]
[1725103024207,0.3749,2525.6,2525.5,0.62699748]
[1725103025604,3.87853355,2525.7,2525.6,0.23755]
[1725103025801,3.63152248,2525.9,2525.6,0.38943748]
[1725103025802,3.11273355,2525.9,2525.6,0.38943748]
[1725103025999,3.11273355,2525.9,2525.8,0.23753]
[1725103026208,3.11273355,2526.0,2525.8,0.62696748]
[1725103026414,3.11273355,2526.0,2525.9,0.38943748]
[1725103026613,7.49031501,2526.0,2525.9,0.38943748]
[1725103027409,7.49031501,2526.0,2525.8,0.23753]
[1725103027708,7.49031501,2526.0,2525.9,0.389327]
[1725103028304,7.49031501,2526.0,2525.8,0.23753]
[1725103029910,4.37758146,2526.0,2525.8,0.23753]
[1725103030111,4.50123355,2526.1,2525.8,0.23753]
[1725103030412,4.50123355,2526.1,2525.9,0.3834]
[1725103031204,4.50123355,2526.1,2525.8,0.23753]
[1725103031406,0.3885,2526.1,2525.9,4.59706193]
[1725103031613,0.3885,2526.1,2526.0,1.12696193]
[1725103032415,0.3885,2526.1,2526.0,1.36447193]
[1725103033905,6.98273355,2526.4,2526.2,0.23749]
[1725103034112,0.3583,2526.3,2526.2,0.23749]
[1725103034314,4.88513148,2526.3,2526.2,0.23749]
[1725103036314,0.00593249,2526.7,2526.2,7.1662]
[1725103036315,4.11866604,2526.7,2526.2,7.1662]
[1725103036514,0.7364,2526.6,2526.4,0.23747]
[1725103036719,4.89579523,2526.6,2526.4,0.23747]
[1725103039114,4.89579523,2526.6,2526.3,3.2078]
[1725103039322,5.89579523,2526.6,2526.3,3.44528]
[1725103039620,5.89579523,2526.6,2526.4,0.23748]
[1725103040926,5.89579523,2526.6,2526.3,3.44528]
[1725103042519,1.23748,2526.4,2526.3,3.2078]
[1725103043029,9.42566832,2526.4,2526.3,3.2078]
[1725103043231,9.18818832,2526.4,2526.3,3.2078]
[1725103043626,9.56908832,2526.4,2526.3,3.2078]
[1725103046918,9.56908832,2526.4,2526.1,3.4453]
[1725103047222,0.3621,2526.3,2526.1,3.4453]
[1725103049828,0.3621,2526.3,2526.1,0.2375]
[1725103050031,0.3621,2526.3,2526.1,3.4453]
[1725103050229,0.3621,2526.3,2526.2,0.23749]
[1725103050428,0.3621,2526.3,2526.2,0.62499]
[1725103051037,0.3621,2526.3,2526.2,0.3875]
[1725103053531,0.3621,2526.3,2526.2,0.62499]
[1725103053934,0.3621,2526.3,2526.2,1.00209]
[1725103055239,0.3621,2526.3,2526.2,4.20989]
[1725103055840,4.22978832,2526.4,2526.3,0.23748]
[1725103060939,0.3861,2526.5,2526.4,0.23748]
[1725103071542,0.3861,2526.5,2526.3,3.2078]
[1725103072748,0.3861,2526.5,2526.3,3.44528]
[1725103074352,0.3861,2526.5,2526.4,0.23748]
[1725103076355,0.3861,2526.5,2526.4,0.62635099]
[1725103080662,0.3861,2526.5,2526.4,0.62637287]
[1725103082261,0.3641,2526.6,2526.5,0.23747]
[1725103082562,0.3641,2526.6,2526.5,0.62636287]
[1725103083064,0.3641,2526.6,2526.5,0.23747]
[1725103083365,0.3641,2526.6,2526.5,0.38885294]
[1725103084466,0.3641,2526.6,2526.5,0.62632294]
[1725103085155,0.75403249,2526.7,2526.6,0.23746]
[1725103085358,0.75403249,2526.7,2526.6,0.62631294]
[1725103086267,0.75403249,2526.7,2526.6,0.23746]
[1725103086460,0.75403249,2526.7,2526.6,0.6264312]
[1725103089662,0.75403249,2526.7,2526.6,0.62647378]
[1725103091660,0.75403249,2526.7,2526.6,0.23746]
[1725103091861,0.75403249,2526.7,2526.5,0.23746]
[1725103094871,0.75403249,2526.7,2526.5,0.23747]
[1725103096067,0.75403249,2526.7,2526.4,3.2078]
[1725103096376,0.75403249,2526.7,2526.5,0.23746]
[1725103096759,0.75403249,2526.7,2526.4,0.23747]
[1725103096966,0.75403249,2526.7,2526.5,0.38914333]
[1725103097166,0.75403249,2526.7,2526.4,3.2078]
[1725103097368,0.75403249,2526.7,2526.2,0.23749]
[1725103097369,5.53868904,2526.6,2526.2,0.23749]
[1725103097563,0.3605,2526.5,2526.3,0.38922066]
[1725103097773,0.3605,2526.5,2526.2,0.23749]
[1725103098076,4.86663802,2526.4,2526.0,4.82251]
[1725103098270,4.86663802,2526.4,2526.1,0.38922473]
[1725103098467,4.86663802,2526.4,2526.2,0.38922473]
[1725103098774,4.86663802,2526.4,2526.3,0.38922473]
[1725103099075,4.62915802,2526.4,2526.1,0.2375]
[1725103099275,4.62915802,2526.4,2526.2,0.38924513]
[1725103099471,4.62915802,2526.4,2526.3,0.38924513]
[1725103099771,4.62915802,2526.4,2526.3,0.62672513]
[1725103099977,0.3826,2526.4,2526.3,0.62672513]
[1725103102375,0.3605,2526.5,2526.4,0.23748]
[1725103102568,0.3605,2526.5,2526.4,1.00472513]
[1725103102879,0.3605,2526.5,2526.4,1.0046146]
[1725103104783,0.3605,2526.5,2526.4,4.2124146]
[1725103105481,0.3605,2526.5,2526.4,1.0046146]
[1725103105682,0.3605,2526.5,2526.4,4.2124146]
[1725103105875,0.3729,2526.6,2526.5,0.23747]
[1725103106081,3.48916604,2526.7,2526.6,0.23746]
[1725103106082,0.00593249,2526.7,2526.6,0.23746]
[1725103106281,0.00593249,2526.7,2526.6,1.9929946]
[1725103108171,0.00593249,2526.7,2526.6,5.9505946]
[1725103111583,0.00593249,2526.7,2526.6,6.3339946]
[1725103112888,0.00593249,2526.7,2526.6,6.33381574]
[1725103114686,0.00593249,2526.7,2526.6,9.54161574]
[1725103116088,0.00593249,2526.7,2526.6,9.54161945]
[1725103117185,0.00593249,2526.7,2526.6,10.57528366]
[1725103117381,0.00593249,2526.7,2526.6,11.96061448]
[1725103118676,0.00593249,2526.7,2526.6,18.55426448]
[1725103118879,0.00593249,2526.7,2526.6,21.05004051]
[1725103119178,0.00593249,2526.7,2526.6,17.9587397]
[1725103119380,0.00593249,2526.7,2526.6,17.56978025]
[1725103119683,0.00593249,2526.7,2526.6,19.93782312]
[1725103119883,0.00593249,2526.7,2526.6,17.95882511]
[1725103120587,0.00593249,2526.7,2526.6,14.75102511]
[1725103120890,0.00593249,2526.7,2526.6,17.95882511]
[1725103122187,0.00593249,2526.7,2526.6,11.95882511]
[1725103122393,0.00593249,2526.7,2526.6,17.95882511]
[1725103122694,0.00593249,2526.7,2526.6,5.20070486]
[1725103122878,0.00593249,2526.7,2526.6,4.83430486]
[1725103123280,0.00593249,2526.7,2526.6,8.79190486]
[1725103123476,0.00593249,2526.7,2526.6,4.83430486]
[1725103123896,0.00593249,2526.7,2526.6,4.59684486]
[1725103124283,0.00593249,2526.7,2526.6,4.83430486]
[1725103126288,0.00593249,2526.7,2526.6,8.40286]
[1725103126486,0.00593249,2526.7,2526.6,8.79202807]
[1725103128581,0.00593249,2526.7,2526.6,8.7920037]
[1725103130782,0.00593249,2526.7,2526.6,4.8344037]
[1725103132890,0.00593249,2526.7,2526.6,4.83443481]
[1725103136186,0.00593249,2526.7,2526.6,4.83441288]
[1725103136385,0.00593249,2526.7,2526.6,8.79201288]
[1725103138284,0.00593249,2526.7,2526.6,5.58421288]
[1725103138687,0.00593249,2526.7,2526.6,8.79201288]
[1725103139099,0.00593249,2526.7,2526.6,4.83441288]
[1725103141688,0.00593249,2526.7,2526.6,4.44526]
[1725103141894,0.00593249,2526.7,2526.6,4.83446817]
[1725103142094,0.00593249,2526.7,2526.6,4.44526]
[1725103142294,0.00593249,2526.7,2526.6,4.8344593]
[1725103142796,0.00593249,2526.7,2526.6,4.44526]
[1725103144403,0.00593249,2526.7,2526.6,4.83447403]
[1725103148708,0.00593249,2526.7,2526.6,4.834435]
[1725103149001,0.00593249,2526.7,2526.6,5.2235997]
[1725103149393,0.00593249,2526.7,2526.6,4.8344247]
[1725103151893,0.00593249,2526.7,2526.6,4.83440206]
[1725103155208,0.00593249,2526.7,2526.6,4.83432822]
[1725103156303,0.00593249,2526.7,2526.6,4.59686822]
[1725103156495,0.00593249,2526.7,2526.6,3.59686822]
[1725103156905,3.96353249,2526.7,2526.6,3.59686822]
[1725103157205,8.65821703,2526.7,2526.6,3.59686822]
[1725103157401,8.65821703,2526.7,2526.6,3.83432822]
[1725103157402,8.42076703,2526.7,2526.6,3.83432822]
[1725103158608,8.42076703,2526.7,2526.6,3.8343018]
[1725103159003,0.00593249,2526.7,2526.6,3.8343018]
[1725103159204,0.00593249,2526.7,2526.6,4.2146018]
[1725103159398,0.00593249,2526.7,2526.6,4.5799018]
[1725103160502,0.00593249,2526.7,2526.6,4.2146018]
[1725103161907,0.00593249,2526.7,2526.6,3.82556]
[1725103162096,0.00593249,2526.7,2526.6,4.21457386]
[1725103163301,0.00593249,2526.7,2526.6,4.57917386]
[1725103165313,0.00593249,2526.7,2526.6,4.19016]
[1725103165515,0.00593249,2526.7,2526.6,4.57910381]
[1725103166611,0.00593249,2526.7,2526.6,5.96456541]
[1725103167715,0.00593249,2526.7,2526.6,6.99635484]
[1725103172317,0.00593249,2526.7,2526.6,3.78855484]
[1725103172518,0.00593249,2526.7,2526.6,6.99635484]
[1725103174209,0.00593249,2526.7,2526.6,3.78855484]
[1725103174413,0.00593249,2526.7,2526.6,6.99635484]
[1725103174609,0.00593249,2526.7,2526.6,8.97547993]
[1725103174815,0.00593249,2526.7,2526.6,9.49418682]
[1725103175416,0.00593249,2526.7,2526.6,9.49411365]
[1725103175616,0.00593249,2526.7,2526.6,6.28631365]
[1725103175823,0.00593249,2526.7,2526.6,9.49411365]
[1725103177020,0.00593249,2526.7,2526.6,14.04536365]
[1725103180519,0.00593249,2526.7,2526.6,14.04527454]
[1725103182026,0.00593249,2526.7,2526.6,14.04525915]
[1725103182225,2.49e-06,2526.7,2526.6,18.49476283]
[1725103184317,2.49e-06,2526.7,2526.6,20.04297947]
[1725103185119,2.49e-06,2526.7,2526.6,20.04297276]
[1725103185518,2.49e-06,2526.7,2526.6,20.04286699]
[1725103185722,2.49e-06,2526.7,2526.6,18.49465706]
[1725103185929,0.3893,2527.0,2526.9,0.23743]
[1725103186122,0.3893,2527.0,2526.9,4.83408525]
[1725103187829,0.3893,2527.0,2526.9,4.59665525]
[1725103188127,0.3893,2527.0,2526.9,4.83408525]
[1725103189029,0.3893,2527.0,2526.9,4.83406079]
[1725103190327,0.3893,2527.0,2526.9,4.59663079]
[1725103191528,0.3893,2527.0,2526.9,4.83406079]
[1725103191843,0.3893,2527.0,2526.9,4.44523]
[1725103192019,0.3893,2527.0,2526.9,4.83407663]
[1725103192728,0.3893,2527.0,2526.9,4.59664663]
[1725103193426,0.3893,2527.0,2526.9,4.8340862]
[1725103193825,4.3469,2527.0,2526.9,0.3888562]
[1725103194030,4.58432,2527.0,2526.7,0.00593249]
[1725103194232,0.3885,2526.9,2526.7,0.00593249]
[1725103194533,0.3884,2526.8,2526.7,1.00593249]
[1725103196425,0.3884,2526.8,2526.7,1.24338249]
[1725103199132,0.3884,2526.8,2526.7,4.45118249]
[1725103199836,0.3884,2526.8,2526.7,4.21373249]
[1725103200530,4.346,2526.8,2526.7,4.21373249]
[1725103201130,4.346,2526.8,2526.7,4.45118249]
[1725103202436,4.346,2526.8,2526.7,3.21373249]
[1725103202632,14.88177764,2526.8,2526.4,3.44527]
[1725103202840,0.3538,2526.7,2526.4,3.2078]
[1725103203032,0.3714,2526.6,2526.4,3.44527]
[1725103206632,0.3714,2526.6,2526.4,0.23747]
[1725103206936,0.3714,2526.6,2526.4,3.44527]
[1725103207245,0.3714,2526.6,2526.5,0.23747]
[1725103207739,4.329,2526.6,2526.5,0.23747]
[1725103208839,0.3714,2526.6,2526.5,0.62663834]
[1725103209041,0.3714,2526.6,2526.5,0.98663834]
[1725103211447,0.3714,2526.6,2526.5,0.98663421]
[1725103211635,0.3714,2526.6,2526.5,0.59747]
[1725103211836,0.3714,2526.6,2526.5,0.98663239]
[1725103214444,0.3714,2526.6,2526.5,0.59747]
[1725103217845,0.3538,2526.7,2526.6,0.23746]
[1725103218254,0.3538,2526.7,2526.6,0.61896]
[1725103219255,0.3538,2526.7,2526.6,0.3815]
[1725103220049,0.3538,2526.7,2526.6,1.61896]
[1725103220458,0.3884,2526.8,2526.6,1.61896]
[1725103220459,0.3837,2527.0,2526.8,0.23743]
[1725103220650,0.7615,2527.0,2526.8,4.44523]
[1725103220954,8.38194328,2526.9,2526.8,4.44523]
[1725103221148,0.7615,2527.0,2526.9,0.23743]
[1725103221348,0.7615,2527.0,2526.9,0.58943]
[1725103221556,0.7615,2527.0,2526.9,0.95663]
[1725103222751,4.7191,2527.0,2526.9,0.95663]
[1725103222945,0.38453249,2527.2,2526.9,0.7192]
[1725103223149,0.38453249,2527.2,2527.0,1.23742]
[1725103223344,4.47571046,2527.1,2527.0,1.23742]
[1725103223955,8.43251046,2527.1,2527.0,1.23742]
[1725103224752,0.00593249,2527.2,2527.1,0.23741]
[1725103225052,0.00593249,2527.2,2527.1,3.44521]
[1725103225258,3.96273249,2527.2,2527.1,3.44521]
[1725103225559,0.00593249,2527.2,2527.1,3.44521]
[1725103226159,3.96273249,2527.2,2527.1,3.44521]
[1725103226358,0.00593249,2527.2,2527.1,3.44521]
[1725103226861,3.96273249,2527.2,2527.1,3.44521]
[1725103227060,0.00593249,2527.2,2527.1,3.44521]
[1725103228357,0.00593249,2527.2,2527.1,4.44521]
[1725103229259,9.61125603,2527.9,2527.5,0.23737]
[1725103229463,9.61125603,2527.9,2527.5,1.23737]
[1725103229464,0.3612,2527.6,2527.5,1.23737]
[1725103229763,0.3612,2527.6,2527.5,1.61237]
[1725103230175,0.3612,2527.6,2527.5,1.375]
[1725103230665,0.3612,2527.6,2527.5,1.61237]
[1725103231266,0.3612,2527.6,2527.5,1.375]
[1725103233966,0.3612,2527.6,2527.5,1.61237]
[1725103240164,0.3612,2527.6,2527.5,1.23737]
[1725103240569,0.3612,2527.6,2527.5,1.0]
[1725103240757,0.3612,2527.6,2527.5,1.23737]
[1725103247085,0.3612,2527.6,2527.5,1.0]
[1725103247380,0.3612,2527.6,2527.4,0.23738]
[1725103248173,0.59856,2527.6,2527.3,4.2078]
[1725103248676,0.59856,2527.6,2527.3,4.44519]
[1725103248873,0.3612,2527.6,2527.3,4.44519]
[1725103251683,0.3612,2527.6,2527.4,0.23738]
[1725103256277,0.3612,2527.6,2527.5,0.23737]
[1725103258777,0.3612,2527.6,2527.4,1.23738]
[1725103258978,0.3612,2527.6,2527.4,0.23738]
[1725103259183,0.3612,2527.6,2527.5,0.23737]
[1725103265088,0.3612,2527.6,2527.5,1.96287]
[1725103265278,0.3827,2527.7,2527.6,0.23736]
[1725103266883,0.38793249,2527.8,2527.6,0.23736]
[1725103267189,0.38793249,2527.8,2527.7,0.23735]
[1725103269295,4.34393249,2527.8,2527.6,0.23736]
[1725103269592,0.38793249,2527.8,2527.5,1.73143249]
[1725103269790,0.38793249,2527.8,2527.7,0.23735]
[1725103272282,0.38793249,2527.8,2527.7,0.62627171]
[1725103273297,0.38793249,2527.8,2527.7,0.23735]
[1725103273594,0.38793249,2527.8,2527.7,0.62626891]
[1725103276800,0.38793249,2527.8,2527.7,0.62628147]
[1725103279093,0.38793249,2527.8,2527.7,0.38893147]
[1725103283205,0.38793249,2527.8,2527.7,0.38892927]
[1725103286601,0.38793249,2527.8,2527.7,0.38910015]
[1725103287894,0.00593249,2527.8,2527.7,5.58245015]
[1725103288698,0.00593249,2527.8,2527.7,1.62645015]
[1725103289606,2.49e-06,2527.8,2527.7,19.70389816]
[1725103289802,2.49e-06,2527.8,2527.7,13.66989801]
[1725103289994,2.49e-06,2527.8,2527.7,20.25413542]
[1725103290303,3.63256715,2528.6,2527.7,20.60820919]
[1725103290304,3.11362898,2528.6,2527.7,20.60820919]
[1725103290500,3.11362898,2528.8,2528.5,0.23727]
[1725103290709,3.11362898,2528.8,2528.6,0.60137]
[1725103290908,4.28814653,2528.7,2528.6,0.60137]
[1725103291099,4.28814653,2528.7,2528.6,0.98994067]
[1725103291300,4.39068255,2528.8,2528.6,0.60137]
[1725103291601,0.36123249,2528.9,2528.6,0.60137]
[1725103291809,4.39068255,2528.8,2528.6,0.60137]
[1725103292502,4.39068255,2528.8,2528.6,0.3641]
[1725103292902,4.39068255,2528.8,2528.6,3.5719]
[1725103293099,4.39068255,2528.8,2528.6,3.80917]
[1725103295695,4.39068255,2528.8,2528.6,3.5719]
[1725103295902,4.39068255,2528.8,2528.6,3.80916]
[1725103297804,4.39068255,2528.8,2528.6,3.2078]
[1725103297999,0.3739,2528.7,2528.6,3.2078]
[1725103298301,0.3739,2528.7,2528.5,1.23727]
[1725103298607,0.3732,2528.6,2528.5,1.23727]
[1725103301003,0.3732,2528.6,2528.5,1.0]
[1725103303304,0.3732,2528.6,2528.4,0.3551]
[1725103303514,0.23729,2528.4,2528.0,8.3658]
[1725103303710,0.3601,2528.3,2528.0,8.60312]
[1725103305005,0.3601,2528.3,2528.1,0.23731]
[1725103306220,0.3601,2528.3,2528.2,1.0]
[1725103307015,0.00593249,2528.9,2528.2,1.0]
[1725103307211,0.3598,2528.5,2528.3,0.374]
[1725103307411,4.52536965,2528.5,2528.3,0.374]
[1725103307605,0.3598,2528.5,2528.3,0.374]
[1725103308008,0.3598,2528.5,2528.3,0.98579]
[1725103308813,0.3598,2528.5,2528.4,1.0]
[1725103312015,0.3598,2528.5,2528.1,0.23731]
[1725103312224,0.59708,2528.5,2528.1,1.62081]
[1725103312626,0.59708,2528.5,2528.2,0.23731]
[1725103313422,1.00593249,2528.9,2528.4,1.0]
[1725103313423,0.00593249,2528.9,2528.4,1.0]
[1725103313610,0.00593249,2528.9,2528.8,4.2078]
[1725103313918,0.00593249,2528.9,2528.8,4.44505]
[1725103315118,0.00593249,2528.9,2528.8,14.39945]
[1725103316224,0.00593249,2528.9,2528.8,8.39945]
[1725103322132,6.32142898,2530.2,2528.8,17.61932]
[1725103322429,4.4835515,2530.1,2529.8,3.2078]
[1725103323320,0.23715,2530.0,2529.8,3.2078]
[1725103323521,4.7206815,2530.1,2529.8,3.2078]
[1725103323722,4.4835515,2530.1,2529.8,3.2078]
[1725103324432,0.23714,2530.0,2529.8,3.2078]
[1725103324735,4.83444878,2529.9,2529.8,3.2078]
[1725103325135,8.78724878,2529.9,2529.8,3.2078]
[1725103328737,8.78724878,2529.9,2529.7,3.21373249]
[1725103328932,4.83444878,2529.9,2529.7,3.21373249]
[1725103329535,0.7361,2529.8,2529.7,3.21373249]
[1725103330026,0.7361,2529.8,2529.7,3.57453249]
[1725103331135,0.7361,2529.8,2529.7,3.81170249]
[1725103331831,0.7361,2529.8,2529.7,3.21373249]
[1725103332934,0.7361,2529.8,2529.7,3.45090249]
[1725103333131,0.7361,2529.8,2529.7,3.21373249]
[1725103333331,1.97326,2529.8,2529.7,0.00593249]
[1725103333531,10.11757254,2529.8,2529.7,0.00593249]
[1725103334434,0.00593249,2530.2,2529.9,0.23715]
[1725103334629,0.3892,2530.0,2529.7,4.21373249]
[1725103334834,0.3892,2530.0,2529.8,0.23716]
[1725103336436,0.3763,2529.9,2529.8,0.23716]
[1725103336835,0.3763,2529.9,2529.8,3.44496]
[1725103339233,0.3763,2529.9,2529.8,3.2078]
[1725103339441,0.3763,2529.9,2529.7,1.24309249]
[1725103339637,0.3763,2529.9,2529.7,0.00593249]
[1725103339836,0.23716,2529.8,2529.7,0.00593249]
[1725103340431,8.67884288,2529.8,2529.7,0.00593249]
[1725103341842,8.44168288,2529.8,2529.7,0.00593249]
[1725103342042,4.48888288,2529.8,2529.7,0.00593249]
[1725103342545,0.3763,2529.9,2529.7,0.24310249]
[1725103342735,0.3763,2529.9,2529.7,0.61710249]
[1725103342935,0.3763,2529.9,2529.7,0.00593249]
[1725103343134,4.14548897,2529.8,2529.7,0.00593249]
[1725103344450,4.14548897,2529.8,2529.7,0.24310249]
[1725103345838,4.14548897,2529.8,2529.7,0.00593249]
[1725103346552,4.14548897,2529.8,2529.7,0.24310249]
[1725103348147,4.14548897,2529.8,2529.7,0.00593249]
[1725103351046,0.3763,2529.9,2529.7,0.24310249]
[1725103351545,0.3763,2529.9,2529.7,0.00593249]
[1725103351751,0.61345,2529.9,2529.7,0.00593249]
[1725103351938,0.3763,2529.9,2529.7,0.00593249]
[1725103353755,0.3763,2529.9,2529.7,0.24309249]
[1725103354750,0.3763,2529.9,2529.7,0.00593249]
[1725103355545,0.61345,2529.9,2529.7,0.00593249]
[1725103357351,3.19071125,2529.9,2529.7,0.00593249]
[1725103358358,2.57726125,2529.8,2529.7,0.00593249]
[1725103359464,2.94466125,2529.8,2529.7,0.00593249]
[1725103359958,3.18182125,2529.8,2529.7,0.00593249]
[1725103360151,0.59297,2529.6,2528.8,0.23725]
[1725103360346,0.59294,2529.7,2528.7,3.2078]
[1725103360347,2.5880082,2529.2,2528.7,3.5842]
[1725103360668,2.8252682,2528.8,2528.4,0.23728]
[1725103360957,3.3400082,2528.7,2528.4,0.23728]
[1725103361148,0.3775,2528.6,2528.4,0.23728]
[1725103362259,0.3775,2528.6,2528.3,0.61962249]
[1725103363750,0.61477,2528.6,2528.3,0.38233249]
[1725103363952,0.3775,2528.6,2528.3,0.38233249]
[1725103364553,0.3775,2528.6,2528.3,0.61962249]
[1725103366559,4.28280354,2528.5,2528.3,0.00593249]
[1725103368059,4.28280354,2528.5,2528.4,3.2078]
[1725103370057,4.28280354,2528.5,2528.3,0.00593249]
[1725103372460,4.28280354,2528.5,2528.3,0.24323249]
[1725103374577,4.28280354,2528.5,2528.4,0.23729]
[1725103374765,4.28280354,2528.5,2528.4,0.62619]
[1725103375269,4.28280354,2528.5,2528.3,0.24322249]
[1725103375769,4.28280354,2528.5,2528.3,0.00593249]
[1725103375959,4.28280354,2528.5,2528.3,0.24322249]
[1725103376161,4.28280354,2528.5,2528.3,0.00593249]
[1725103376672,4.52009354,2528.5,2528.3,0.00593249]
[1725103377957,4.52009354,2528.5,2528.3,3.21373249]
[1725103379571,4.52009354,2528.5,2528.3,0.00593249]
[1725103379868,4.52009354,2528.5,2528.3,3.21373249]
[1725103380073,0.23729,2528.4,2528.3,3.21373249]
[1725103380965,8.63721907,2528.4,2528.3,3.21373249]
[1725103381565,4.68201907,2528.4,2528.3,3.21373249]
[1725103382172,8.63721907,2528.4,2528.3,3.21373249]
[1725103382871,8.63721907,2528.4,2528.3,0.00593249]
[1725103390279,0.23732,2528.1,2528.0,3.2078]
[1725103390468,0.23733,2528.0,2527.6,4.5727]
[1725103390664,0.3617,2527.9,2527.7,0.23735]
[1725103390865,5.37318885,2527.9,2527.6,3.81006]
[1725103392473,5.37318885,2527.9,2527.6,3.5727]
[1725103392474,0.23734,2527.8,2527.6,3.5727]
[1725103392781,5.13585885,2527.9,2527.8,0.23734]
[1725103392968,4.76825885,2527.9,2527.8,0.23734]
[1725103393968,0.3838,2528.1,2527.9,0.23733]
[1725103394179,0.3838,2528.1,2527.8,1.0]
[1725103394180,0.3838,2528.1,2528.0,0.3619]
[1725103394677,4.52411134,2528.1,2528.0,0.3619]
[1725103395379,4.52411134,2528.1,2528.0,0.59922]
[1725103395977,4.52411134,2528.1,2528.0,0.3619]
[1725103396469,4.52411134,2528.1,2528.0,0.59922]
[1725103398384,0.3838,2528.1,2528.0,0.59922]
[1725103399179,0.3834,2528.4,2528.3,0.2373]
[1725103399577,4.70254875,2528.4,2528.3,0.2373]
[1725103399778,4.70254875,2528.4,2528.2,0.2373]
[1725103400375,4.70254875,2528.4,2528.3,0.2373]
[1725103402285,4.70254875,2528.4,2528.2,0.2373]
[1725103404381,0.3834,2528.4,2528.3,0.2373]
[1725103407088,2.9714082,2528.4,2528.3,0.2373]
[1725103408495,0.3834,2528.4,2528.3,0.2373]
[1725103408984,2.9714082,2528.4,2528.3,0.2373]
[1725103420995,2.9714082,2528.4,2528.3,0.62602922]
[1725103422495,2.9714082,2528.4,2528.3,0.98612922]
[1725103422705,2.9714082,2528.4,2528.3,0.5974]
[1725103423098,2.9714082,2528.4,2528.3,0.9861418]
[1725103426203,2.9714082,2528.4,2528.3,0.98611865]
[1725103428306,0.3834,2528.4,2528.3,0.98611865]
[1725103429410,0.3834,2528.4,2528.3,0.98603712]
[1725103429613,2.5880082,2528.5,2528.4,0.23729]
[1725103429825,3.7092082,2528.7,2528.6,0.23727]
[1725103431412,3.7092082,2528.7,2528.5,0.23727]
[1725103431806,3.7092082,2528.7,2528.4,0.23728]
[1725103432005,2.5880082,2528.6,2528.3,0.59739]
[1725103432201,2.5880082,2528.5,2528.3,0.59739]
[1725103432702,0.3812,2528.4,2528.3,0.23729]
[1725103432908,0.3812,2528.4,2528.2,3.2078]
[1725103433111,0.7409,2528.3,2528.2,3.44511]
[1725103433403,0.7409,2528.3,2528.2,3.83377217]
[1725103433610,0.7409,2528.3,2528.2,7.78897217]
[1725103434515,0.7409,2528.3,2528.2,3.83377217]
[1725103436303,0.7409,2528.3,2528.2,3.83399639]
[1725103436501,0.7409,2528.3,2528.2,0.62619639]
[1725103438308,0.7409,2528.3,2528.2,0.38888639]
[1725103438515,3.3289082,2528.3,2528.2,0.38888639]
[1725103439209,0.7409,2528.3,2528.0,3.44512]
[1725103439405,2.59165677,2528.2,2528.1,0.38895076]
[1725103439804,7.78416677,2528.2,2527.8,0.23734]
[1725103440004,4.20648477,2528.1,2527.9,0.38902162]
[1725103440205,1.3774,2528.1,2527.6,0.3724]
[1725103440401,6.85074342,2528.0,2527.7,3.83435213]
[1725103440616,0.7099,2527.9,2527.8,0.62654213]
[1725103441213,0.3566,2527.9,2527.8,0.62654213]
[1725103441406,3.34676078,2528.1,2527.8,4.34520213]
[1725103441608,3.34676078,2528.1,2528.0,0.23732]
[1725103441909,0.7545,2528.1,2528.0,0.62652213]
[1725103443009,3.34676078,2528.1,2528.0,3.83432213]
[1725103444928,3.34676078,2528.1,2528.0,0.23732]
[1725103445215,0.7545,2528.1,2528.0,0.3891563]
[1725103446919,3.3474141,2528.1,2528.0,0.3891563]
[1725103447120,0.7545,2528.1,2528.0,0.3891563]
[1725103447708,9.11780171,2528.1,2528.0,0.3891563]
[1725103448208,9.11780171,2528.1,2527.8,0.23734]
[1725103448409,2.59248853,2528.0,2527.9,0.38922895]
[1725103448611,3.59248853,2528.0,2527.9,0.38922895]
[1725103449315,3.82980853,2528.0,2527.9,0.38922895]
[1725103450020,9.32842322,2528.0,2527.6,3.81756]
[1725103450317,2.5923033,2527.9,2527.7,0.38934757]
[1725103450523,2.5923033,2527.9,2527.8,0.38934757]
[1725103451614,2.5923033,2527.9,2527.8,0.3893583]
[1725103452209,3.8296233,2528.0,2527.8,0.3893583]